Cogmind - Beta 15 *** ADVENTURER MODE // 2025.08.03 @ 00:06:02 Player: Mbreton Result: Core destroyed Performance ------------- Evolutions (4) 2000 Regions Visited (12) 2400 Robots Destroyed (76) 380 Value Destroyed (2688) 2688 Prototype IDs (25) 500 Alien Tech Used (0) 0 Bonus (1240) 1240 TOTAL SCORE: 9208 Bonus ------- Follower Combat Kills 40 Entered Garrisons 400 Used RIF Installer 500 Aligned with FarCom 300 Cogmind --------- Core Integrity 0/850 Matter 257/300 Energy 395/480 System Corruption 2% Temperature Critical (544) Movement Treading (240) Ox1 Location -6/Garrison Parts ------- > --- POWER (2) -------- Improved Deuterium Engine Improved Deuterium Engine > --- PROPULSION (4) --- Improved Treads Improved Medium Treads Improved Medium Treads > --- UTILITY (6) ------ Advanced Cryofiber Web Large Storage Unit Target Analyzer Improved Core Shielding Relay Coupler [Swarmer] (2) > --- WEAPON (3) ------- Gatling Laser HERF Cannon Heavy Machine Gun > --- INVENTORY (15) --- Light Angular Momentum Engine Improved Cryofiber Web Advanced Heat Sink Target Analyzer Improved Shield Generator Hacking Suite Hacking Suite Relay Coupler [NC] (34) Relay Coupler [NC] (35) Relay Coupler [Grunt] (41) Relay Coupler [Duelist] (37) Relay Coupler [Heavy] (18) Relay Coupler [Heavy] (17) Remote Datajack Remote Datajack Peak State ------------ > --- POWER ------------ Improved Deuterium Engine Improved Deuterium Engine > --- PROPULSION ------- Improved Treads Improved Medium Treads Improved Medium Treads > --- UTILITY ---------- Advanced Cryofiber Web Large Storage Unit Target Analyzer Improved Core Shielding Layered Medium Armor Plating Relay Coupler [Swarmer] > --- WEAPON ----------- Gatling Laser HERF Cannon Heavy Machine Gun > --- INVENTORY -------- Light Angular Momentum Engine Improved Cryofiber Web Advanced Heat Sink Improved Shield Generator Hacking Suite Hacking Suite Relay Coupler [NC] Relay Coupler [NC] Relay Coupler [Grunt] Relay Coupler [Duelist] Relay Coupler [Heavy] Relay Coupler [Heavy] Remote Datajack Remote Datajack [Rating: 65] Favorites ----------- Power Improved Deuterium Engine Engine Improved Deuterium Engine Power Core Light Nuclear Core Propulsion Titanium Leg Treads Improved Medium Treads Leg Titanium Leg Wheel Compact Wheel Flight Unit Field Propulsion Array Utility Large Storage Unit Device Dynamic Insulation System Storage Large Storage Unit Processor Target Analyzer Hackware Makeshift Hacking Suite Protection Reflective Plating Weapon EM Pulse Gun Energy Gun EM Pulse Gun Energy Cannon HERF Cannon Ballistic Gun Shotgun Ballistic Cannon Flak Cannon Launcher Grenade Launcher Special Weapon Remote Datajack Impact Weapon Heavy Mace Special Melee Weapon Improved Datajack Build | -11 -10 -10 -10 -9 -8 -7 -7 -7 -6 -6 -6 -6 ------- Run | Yrd Mat Min Exi Min Mat Fac Low Low Fac Gar Fac Gar Slots Evolved 8 | . . . . . 4 2 . . 2 . . . Power 1 | . . . . . . . . . 1 . . . Propulsion 2 | . . . . . 2 . . . . . . . Utility 4 | . . . . . 2 1 . . 1 . . . Weapon 1 | . . . . . . 1 . . . . . . Parts Attached 76 | 7 3 . 3 . 19 13 4 . 4 14 9 . Power 9 | 2 . . . . 2 1 1 . . 3 . . Engine 6 | 2 . . . . 1 . . . . 3 . . Core 3 | . . . . . 1 1 1 . . . . . Reactor . | . . . . . . . . . . . . . Propulsion 17 | 2 . . . . 5 3 . . . 3 4 . Treads 3 | . . . . . . . . . . 1 2 . Leg 8 | . . . . . 4 3 . . . 1 . . Wheel 5 | 2 . . . . 1 . . . . . 2 . Hover . | . . . . . . . . . . . . . Flight 1 | . . . . . . . . . . 1 . . Utility 23 | 1 2 . 2 . 5 4 . . 2 3 4 . Device 8 | . 1 . . . 2 2 . . 1 2 . . Storage 4 | 1 1 . 1 . 1 . . . . . . . Processor 2 | . . . 1 . . . . . . . 1 . Hackware 3 | . . . . . . . . . 1 1 1 . Protection 6 | . . . . . 2 2 . . . . 2 . Artifact . | . . . . . . . . . . . . . Weapon 27 | 2 1 . 1 . 7 5 3 . 2 5 1 . Energy Gun 10 | 2 1 . . . 1 3 . . 1 2 . . Energy Cannon 4 | . . . . . . 1 1 . 1 1 . . Ballistic Gun 3 | . . . 1 . 1 . . . . . 1 . Ballistic Cannon 1 | . . . . . 1 . . . . . . . Launcher 2 | . . . . . 2 . . . . . . . Special Weapon 3 | . . . . . . 1 1 . . 1 . . Impact Weapon 3 | . . . . . 2 . 1 . . . . . Slashing Weapon . | . . . . . . . . . . . . . Piercing Weapon . | . . . . . . . . . . . . . Special Melee Weapon 1 | . . . . . . . . . . 1 . . Unidentified Prototypes 5 | . . . 3 . . 2 . . . . . . Parts Lost 27 | . . . . . 1 2 3 1 . 19 . 1 Power 3 | . . . . . . 1 . . . 2 . . Propulsion 6 | . . . . . . . . . . 6 . . Utility 9 | . . . . . 1 . 2 . . 5 . 1 Weapon 9 | . . . . . . 1 1 1 . 6 . . Highest Loss Streak 15 | . . . . . 1 2 2 1 . 15 . 1 To Critical Strikes . | . . . . . . . . . . . . . Average Backups 12 | 1 6 8 8 9 14 14 14 15 14 11 13 15 Power . | . 1 1 1 1 1 . . . . . 1 1 Propulsion . | . . . . . . 1 2 2 2 1 . . Utility 6 | . 2 4 4 5 5 5 6 7 6 6 11 12 Weapon 2 | . 1 2 1 2 5 3 2 3 3 1 . . Tool/Special . | . . . . . . . . . . . . . Unused Backups 26 | . 1 . . . 5 2 . . . 5 . 13 Power 1 | . . . . . . . . . . . . 1 Propulsion 1 | . . . . . . . . . . 1 . . Utility 21 | . 1 . . . 2 2 . . . 4 . 12 Weapon 2 | . . . . . 2 . . . . . . . Tool/Special 1 | . . . . . 1 . . . . . . . Average Slot Usage (%) 85 | . 99 100 99 100 86 98 84 77 78 65 77 93 Engine 7 | . 14 14 14 14 9 . . . . 5 13 13 Core 2 | . . . . . . 6 5 7 6 1 . . Treads 3 | . . . . . . . . . . 1 15 20 Leg 14 | . . . . . 21 30 30 30 26 12 . . Wheel 6 | . 28 28 28 28 9 . . . . . . . Device 6 | . 13 14 3 . 6 5 7 7 9 9 6 6 Storage 13 | . 14 14 23 28 18 15 15 15 13 7 6 6 Hackware 1 | . . . . . . . . . 2 3 1 6 Protection 5 | . . . . . 4 15 2 . 1 2 7 13 Energy Gun 10 | . 28 28 27 28 2 11 7 1 2 4 6 6 Energy Cannon 3 | . . . . . . 5 3 7 8 3 5 6 Ballistic Gun 1 | . . . . . 6 1 . . . . . . Ballistic Cannon 1 | . . . . . 6 . . . . . . . Special Weapon 2 | . . . . . . . 5 7 6 2 5 5 Impact Weapon 1 | . . . . . 1 2 3 . . 1 . . Peak Build Rating 65 | 6 7 7 35 17 39 57 51 48 58 60 65 65 Average Rating 40 | 4 6 7 13 16 31 50 47 44 51 46 58 63 On Entrance 31 | . 6 7 7 16 17 38 48 48 44 58 51 64 Naked Turns 9 | . . . . . . . . . . 9 . . Heaviest Build 71 | 14 30 30 33 33 45 58 48 45 51 59 71 69 Greatest Support 83 | 32 32 32 32 32 68 70 70 70 70 70 83 83 Greatest Overweight (x) 22 | . . . 1 1 2 . . . . 2 22 . Average Overweight (x) . | . . . . 1 . . . . . . . . Largest Inventory Capacity 15 | 8 15 15 15 15 15 15 15 15 15 15 15 15 Average Capacity 14 | 7 8 15 14 15 15 15 15 15 15 12 15 15 Most Carried 15 | 2 8 8 9 12 15 15 15 15 15 15 15 15 Average Carried 12 | 1 6 8 8 9 14 14 14 15 14 11 13 15 Final Capacity 15 | 8 15 15 15 15 15 15 15 15 15 15 15 15 Final Carried 15 | 2 8 8 9 12 15 15 15 15 15 12 15 15 Class Distribution -------------------- 49% | Mutant 12% | Tank 10% | Bothacker-Tank 9% | Bothacker-Skirmisher 5% | Hacker-Mutant 4% | Hacker-Skirmisher 4% | Gunner Dominant Class ---------------- Mutant | -10/Materials Mutant | -10/Mines Mutant | -10/Exiles Mutant | -9/Mines Mutant | -8/Materials Tank | -7/Factory Gunner | -7/Lower Caves Mutant | -7/Lower Caves Hacker-Skirmisher | -6/Factory Mutant | -6/Garrison Bothacker-Tank | -6/Factory Bothacker-Tank | -6/Garrison Resources | -11 -10 -10 -10 -9 -8 -7 -7 -7 -6 -6 -6 -6 ----------- Run | Yrd Mat Min Exi Min Mat Fac Low Low Fac Gar Fac Gar Matter Collected 1693 | 137 153 10 . 60 357 393 125 . . 280 178 . Remotely . | . . . . . . . . . . . . . Salvage Created 2131 | . 140 . . 53 497 349 197 35 . 433 383 44 Parts 124 | . 10 . . 3 45 12 13 2 . 15 19 5 Haulers Intercepted . | . . . . . . . . . . . . . Recyclers Shooed . | . . . . . . . . . . . . . Parts Field Recycled . | . . . . . . . . . . . . . Retrieved Matter . | . . . . . . . . . . . . . Parts Self-Destructed 14 | . . . . . . . 9 5 . . . . Prevented 2 | . . . . . . . 2 . . . . . Kills | -11 -10 -10 -10 -9 -8 -7 -7 -7 -6 -6 -6 -6 ------- Run | Yrd Mat Min Exi Min Mat Fac Low Low Fac Gar Fac Gar Combat Hostiles Destroyed 61 | . 4 . . . 21 6 7 1 . 12 9 1 Melee 4 | . . . . . 1 1 1 . . 1 . . Guns 21 | . 4 . . . 3 2 5 . . 2 4 1 Cannons 10 | . . . . . 1 1 . 1 . 2 5 . AOE 23 | . . . . . 14 1 1 . . 7 . . Classes Destroyed 9 | . 3 . . 1 3 1 . 1 . . . . Worker 8 | . . . . 2 5 . . . . . 1 . Builder 1 | . . . . . 1 . . . . . . . Tunneler 1 | . . . . . 1 . . . . . . . Watcher 5 | . 2 . . . 2 1 . . . . . . Swarmer 29 | . 3 . . . 12 . 6 . . 4 4 . Grunt 17 | . 1 . . . 4 4 . . . 6 2 . Sentry 6 | . . . . . 5 1 . . . . . . Hunter 2 | . . . . . . . . 1 . 1 . . Programmer 7 | . . . . . . 1 1 . . 1 3 1 Best Kill Streak 16 | . 3 . . 1 16 2 3 1 . 4 3 1 Combat Bots Only 12 | . 3 . . . 12 2 3 1 . 4 2 1 Max Kills in Single Turn 4 | . 1 . . 1 4 1 1 1 . 2 2 1 Gunslinging . | . . . . . . . . . . . . . Exploded 3 | . . . . . 3 1 1 . . 2 . . Melee 1 | . . . . . 1 1 1 . . 1 . . Uniques/NPCs Destroyed . | . . . . . . . . . . . . . Combat | -11 -10 -10 -10 -9 -8 -7 -7 -7 -6 -6 -6 -6 -------- Run | Yrd Mat Min Exi Min Mat Fac Low Low Fac Gar Fac Gar Hostile Shots Fired 563 | . 18 . . . 79 82 117 4 . 191 38 34 Missed 182 | . 2 . . . 32 32 33 . . 63 10 10 Hits 381 | . 16 . . . 47 50 84 4 . 128 28 24 Projectile 381 | . 16 . . . 47 50 84 4 . 128 28 24 AOE 4 | . . . . . . 3 . . . 1 . . Critical Strikes 20 | . 1 . . . 2 1 1 . . 11 1 3 Actively Blocked 1 | . . . . . . . . . . . 1 . Part Disruptions 2 | . . . . . . . 1 . . . . 1 Actively Blocked 1 | . . . . . . . 1 . . . . . Damage Taken 5004 | . 145 . . . 398 569 839 46 34 2228 346 399 Core 1103 | . 61 . . . 36 57 77 . . 710 34 128 Absorbed by Shields 116 | . . . . . 60 . . . . 56 . . Redirected to Shielding 15 | . . . . . . . . . . . 12 3 Ignored by Resistances 1511 | . 45 . . . 169 237 244 12 9 619 99 77 Regen/Repaired (Parts) 136 | . . . . . 68 . . . . . 68 . Core Remaining (%) 87 | 100 . . . 75 93 . . 80 . . . . Volleys Fired 131 | . 13 . . 3 26 11 20 4 1 22 24 7 Largest 3 | . 2 . . 2 2 3 2 1 1 3 3 3 Hottest 198 | . 80 . . 80 67 140 110 80 80 179 198 198 Shots Fired 236 | . 26 . . 6 48 28 28 4 1 35 44 16 Gun 139 | . 26 . . 6 19 18 22 . . 17 20 11 Cannon 61 | . . . . . 17 9 . 4 1 9 16 5 Launcher 24 | . . . . . 12 . 4 . . 8 . . Special 12 | . . . . . . 1 2 . . 1 8 . Kinetic 43 | . . . . . 33 1 . . . . 5 4 Thermal 38 | . . . . . . 9 . 4 1 2 15 7 Explosive 24 | . . . . . 12 . 4 . . 8 . . Electromagnetic 119 | . 26 . . 6 3 17 22 . . 24 16 5 Robot Hit Streak 25 | . 18 . . 23 25 9 12 3 4 14 19 4 Robot Miss Streak 4 | . 2 . . . 4 2 2 1 . 2 3 1 Penetration Max . | . . . . . . . . . . . . . Secondary Targets 1 | . 1 . . . . . . . . . . . Max Gunslinging Chain 1 | . 1 . . . . . . . . . . . Shots Hit Robots 207 | . 21 . . 5 47 26 24 3 1 33 37 10 Core Hits 150 | . 9 . . 2 52 9 16 1 1 30 25 5 Critical Kills 2 | . . . . . 1 . . . . 1 . . Critical Parts Destroyed 8 | . . . . . 3 3 . . . 1 1 . Critical Strikes 10 | . . . . . 4 3 . . . 2 1 . Destroy 3 | . . . . . 2 . . . . . 1 . Smash 7 | . . . . . 2 3 . . . 2 . . Melee Attacks 48 | . . . . . 12 8 5 . . 23 . . Impact 45 | . . . . . 12 8 5 . . 20 . . Slashing . | . . . . . . . . . . . . . Piercing . | . . . . . . . . . . . . . Sneak Attacks . | . . . . . . . . . . . . . Combat Hostiles . | . . . . . . . . . . . . . Follow-up Attacks 1 | . . . . . 1 . . . . . . . Damage Inflicted 6203 | . 397 . . 69 1886 532 413 76 24 1730 829 247 Guns 1897 | . 291 . . 69 304 142 160 . . 206 501 224 Cannons 1018 | . . . . . 236 150 . 76 24 181 328 23 Explosions 2209 | . 106 . . . 1066 39 53 . . 945 . . Melee 1079 | . . . . . 280 201 200 . . 398 . . Ramming . | . . . . . . . . . . . . . Kinetic 657 | . . . . . 473 . . . . . 106 78 Thermal 1197 | . 106 . . . 41 189 . 76 24 220 395 146 Explosive 1837 | . . . . . 1025 . 53 . . 759 . . Electromagnetic 1433 | . 291 . . 69 67 142 160 . . 353 328 23 Impact 1079 | . . . . . 280 201 200 . . 398 . . Slashing . | . . . . . . . . . . . . . Piercing . | . . . . . . . . . . . . . Highest Corruption 2 | . . . . . . . 2 2 . 1 . 2 Average Corruption 1 | . . . . . . . 1 2 . 1 . 1 Corruption Purged 2 | . . . . . . . . . . 2 . . Corruption Blocked . | . . . . . . . . . . . . . Effects 5 | . . . . . . . 3 2 . . . . Message Errors 1 | . . . . . . . . 1 . . . . Matter Fused 1 | . . . . . . . 1 . . . . . Energy Discharges 1 | . . . . . . . . 1 . . . . Data Loss (major) 1 | . . . . . . . 1 . . . . . Misfires 1 | . . . . . . . 1 . . . . . Overload Shots . | . . . . . . . . . . . . . Overflow Damage 308 | . . . . . 144 96 . . . 68 . . Projectiles . | . . . . . . . . . . . . . Explosions 63 | . . . . . 39 . . . . 24 . . Melee 245 | . . . . . 105 96 . . . 44 . . Knockbacks 14 | . . . . . 5 2 3 . . 4 . . Impact 9 | . . . . . . 2 3 . . 4 . . Kinetic 5 | . . . . . 5 . . . . . . . Secondary . | . . . . . . . . . . . . . Self-Inflicted Damage 76 | . 22 . . . . . 14 . . 40 . . Shots 4 | . 1 . . . . . 1 . . 2 . . Rammed . | . . . . . . . . . . . . . Targets Rammed . | . . . . . . . . . . . . . Kicked . | . . . . . . . . . . . . . Crushed . | . . . . . . . . . . . . . Highest Temperature 567 | . 219 . . 36 14 255 81 120 24 360 502 567 Average Temperature 108 | . 85 . . 17 5 77 30 63 12 140 207 205 Received Heat Transfer 1405 | . 81 . . . 186 207 . . . 877 54 . Effects 12 | . . . . . . . . . . 2 7 3 Energy Bleed 2 | . . . . . . . . . . 2 . . Interference 5 | . . . . . . . . . . . 3 2 Damage (minor) 1 | . . . . . . . . . . . 1 . Damage (major) 3 | . . . . . . . . . . . 3 . Damage (core) 1 | . . . . . . . . . . . . 1 Siege Activations . | . . . . . . . . . . . . . Martial Activations . | . . . . . . . . . . . . . Shielding Activations . | . . . . . . . . . . . . . Robots Disrupted 3 | . . . . . . 1 2 . . . . . Combat Hostiles 3 | . . . . . . 1 2 . . . . . Robots Corrupted 3 | . . . . . 2 1 . . . . . . Combat Hostiles 3 | . . . . . 2 1 . . . . . . Parts Fried 14 | . 3 . . . 6 1 . . . 2 2 . Impact Corruptions 8 | . . . . . 4 3 . . . 1 . . Robots Melted . | . . . . . . . . . . . . . Combat Hostiles . | . . . . . . . . . . . . . Parts Melted 2 | . . . . . . 1 . . . . 1 . Heat Transferred 1877 | . 100 . . . 50 235 . 150 50 275 825 192 Parts Sabotaged . | . . . . . . . . . . . . . Parts Stolen . | . . . . . . . . . . . . . Parts Stripped . | . . . . . . . . . . . . . Power Chain Reactions 4 | . 1 . . . 1 1 . . . 1 . . Alert | -11 -10 -10 -10 -9 -8 -7 -7 -7 -6 -6 -6 -6 ------- Run | Yrd Mat Min Exi Min Mat Fac Low Low Fac Gar Fac Gar Maximum Alert Level 2 | . . . . . 1 . . . . 2 1 . Low Security (%) 81 | 100 100 100 . 100 64 100 . . 100 47 98 100 Level 1 16 | . . . . . 35 . . . . 45 1 . Level 2 1 | . . . . . . . . . . 7 . . Level 3 . | . . . . . . . . . . . . . Level 4 . | . . . . . . . . . . . . . Level 5 . | . . . . . . . . . . . . . High Security . | . . . . . . . . . . . . . Max Security . | . . . . . . . . . . . . . Peak Influence 457 | . 70 . . 5 299 77 . . 5 457 207 130 Initial 207 | . . . . . . 77 . . . . 207 63 Average 86 | . 13 . . . 115 11 . . . 213 72 74 Influence Increases 2269 | . 136 . . 10 661 192 175 31 6 687 304 67 Destroy 0b10 Robot/C 1260 | . 80 . . . 420 120 140 20 . 240 220 20 Destroy 0b10 Robot/NC 80 | . 10 . . 10 45 5 . . 5 . 5 . Destroy Leader 260 | . 14 . . . 94 32 20 10 . 30 50 10 Allied During Kill 4 | . . . . . . . . 1 . 1 2 . Successful Hack 67 | . 15 . . . 19 . . . 1 8 12 12 Anti-Garrison Action 200 | . . . . . . . . . . 200 . . Destroy Structure 98 | . 2 . . . 38 5 . . . 43 . 10 Lose Combat Pursuer 300 | . 15 . . . 45 30 15 . . 165 15 15 Influence Decreases 2149 | . 136 . . 10 462 391 175 31 5 231 657 51 Entered New Map 414 | . . . . . . 122 . . . 1 250 41 Time Decay 1425 | . 106 . . 10 452 269 145 31 5 . 407 . Lost Part 240 | . . . . . 10 . 30 . . 190 . 10 Lost Ally 40 | . . . . . . . . . . 40 . . Purge Threat 30 | . 30 . . . . . . . . . . . Squads Dispatched 10 | . . . . . 2 4 . . . . 4 . Investigation 3 | . . . . . 1 1 . . . . 1 . Extermination 6 | . . . . . . 3 . . . . 3 . Reinforcement 1 | . . . . . 1 . . . . . . . Assault . | . . . . . . . . . . . . . Garrison . | . . . . . . . . . . . . . Intercept . | . . . . . . . . . . . . . Searches Triggered . | . . . . . . . . . . . . . Construction Impeded . | . . . . . . . . . . . . . Haulers Reinforced . | . . . . . . . . . . . . . Active Scanning Responses . | . . . . . . . . . . . . . Cargo Convoy Interrupts . | . . . . . . . . . . . . . Stealth | -11 -10 -10 -10 -9 -8 -7 -7 -7 -6 -6 -6 -6 --------- Run | Yrd Mat Min Exi Min Mat Fac Low Low Fac Gar Fac Gar Distress Signals 3 | . 1 . . . 2 . . . . . . . Communications Jammed . | . . . . . . . . . . . . . Distress Signals . | . . . . . . . . . . . . . Times Spotted 106 | . 8 . . . 29 16 10 1 1 21 17 3 Peak Tracking Total 11 | . 3 . . . 11 4 5 1 1 6 4 4 Tactical Retreats 15 | . 1 . . . 2 2 1 . . 7 1 1 Traps | -11 -10 -10 -10 -9 -8 -7 -7 -7 -6 -6 -6 -6 ------- Run | Yrd Mat Min Exi Min Mat Fac Low Low Fac Gar Fac Gar Traps Triggered 8 | . . . . . 1 2 . . . 3 2 . Indirectly . | . . . . . . . . . . . . . Trap Hack Attempts . | . . . . . . . . . . . . . Triggered . | . . . . . . . . . . . . . Disarmed . | . . . . . . . . . . . . . Reprogrammed . | . . . . . . . . . . . . . Reused . | . . . . . . . . . . . . . Traps Extracted . | . . . . . . . . . . . . . Installed . | . . . . . . . . . . . . . Triggered . | . . . . . . . . . . . . . Machines | -11 -10 -10 -10 -9 -8 -7 -7 -7 -6 -6 -6 -6 ---------- Run | Yrd Mat Min Exi Min Mat Fac Low Low Fac Gar Fac Gar Machines Disabled 2 | . . . . . . . . . . 2 . . Max in Single Turn 1 | . . . . . . . . . . 1 . . Garrison Relay 2 | . . . . . . . . . . 2 . . Phase Generator 1 | . . . . . . . . . . 1 . . Machines Repaired . | . . . . . . . . . . . . . Machines Dismantled . | . . . . . . . . . . . . . Machines Sabotaged . | . . . . . . . . . . . . . Overloaded Fab Kills . | . . . . . . . . . . . . . Hacking | -11 -10 -10 -10 -9 -8 -7 -7 -7 -6 -6 -6 -6 --------- Run | Yrd Mat Min Exi Min Mat Fac Low Low Fac Gar Fac Gar Machines Accessed 23 | . 5 . 1 1 6 3 . . 1 2 3 1 Terminals 15 | . 5 . . 1 3 2 . . . 2 1 1 Fabricators 1 | . . . . . . 1 . . . . . . Repair Stations 2 | . . . . . 1 . . . . . 1 . Recycling Units . | . . . . . . . . . . . . . Scanalyzers 2 | . . . . . 2 . . . . . . . Garrison Access 2 | . . . . . . . . . 1 . 1 . Total Hacks 38 | . 7 . 1 1 15 4 . . 1 3 5 1 Successful 25 | . 6 . 1 1 10 . . . 1 1 4 1 Failed 13 | . 1 . . . 5 4 . . . 2 1 . Catastrophic 4 | . . . . . . 3 . . . . 1 . Database Lockouts . | . . . . . . . . . . . . . Manual 1 | . . . 1 . . . . . . . . . Terminals 23 | . 7 . . 1 7 3 . . . 3 1 1 Fabricators 1 | . . . . . . 1 . . . . . . Repair Stations 4 | . . . . . 2 . . . . . 2 . Recycling Units . | . . . . . . . . . . . . . Scanalyzers 6 | . . . . . 6 . . . . . . . Garrison Access 3 | . . . . . . . . . 1 . 2 . Terminal Hacks 13 | . 6 . 1 1 3 . . . . 1 . 1 Record 1 | . 1 . . . . . . . . . . . Robot Analysis 1 | . . . . . 1 . . . . . . . Emergency Access Points 1 | . . . . . . . . . . . . 1 Terminal Index 1 | . 1 . . . . . . . . . . . Recycling Unit Index 1 | . 1 . . . . . . . . . . . Scanalyzer Index 1 | . 1 . . . . . . . . . . . Alert Level 1 | . . . . . 1 . . . . . . . Unreport Threat 1 | . 1 . . . . . . . . . . . Dispatch Records 1 | . . . . . 1 . . . . . . . Registered Components 1 | . 1 . . . . . . . . . . . Zone Layout 1 | . . . . 1 . . . . . . . . Garrison Registry 1 | . . . . . . . . . . 1 . . Proto ID Catalog 1 | . . . 1 . . . . . . . . . Fabricator Hacks . | . . . . . . . . . . . . . Repair Station Hacks 4 | . . . . . 2 . . . . . 2 . Scan Component 2 | . . . . . 1 . . . . . 1 . Repair 2 | . . . . . 1 . . . . . 1 . Recycling Unit Hacks . | . . . . . . . . . . . . . Scanalyzer 5 | . . . . . 5 . . . . . . . Insert Component 3 | . . . . . 3 . . . . . . . Analyze 2 | . . . . . 2 . . . . . . . Garrison Access Hacks 3 | . . . . . . . . . 1 . 2 . Unlock Access 2 | . . . . . . . . . 1 . 1 . Coupler Status 1 | . . . . . . . . . . . 1 . Unauthorized Hacks . | . . . . . . . . . . . . . Terminals . | . . . . . . . . . . . . . Fabricators . | . . . . . . . . . . . . . Repair Stations . | . . . . . . . . . . . . . Recycling Units . | . . . . . . . . . . . . . Scanalyzers . | . . . . . . . . . . . . . Garrison Access . | . . . . . . . . . . . . . Data Cores Recovered 1 | . . . . . . . . . 1 . . . Used . | . . . . . . . . . . . . . Hacking Detections 11 | . . . . 1 2 3 . . . 1 3 1 Full Trace Events . | . . . . . . . . . . . . . Feedback Events . | . . . . . . . . . . . . . Feedback Blocked . | . . . . . . . . . . . . . Robot Schematics Acquired . | . . . . . . . . . . . . . Robots Built . | . . . . . . . . . . . . . Authchips . | . . . . . . . . . . . . . Time . | . . . . . . . . . . . . . Total Robot Build Rating . | . . . . . . . . . . . . . Part Schematics Acquired 2 | . . . . . 2 . . . . . . . Parts Built . | . . . . . . . . . . . . . Authchips . | . . . . . . . . . . . . . Time . | . . . . . . . . . . . . . Total Part Build Rating . | . . . . . . . . . . . . . Parts Repaired 2 | . . . . . 1 . . . . . 1 . Time 69 | . . . . . 38 . . . . . 31 . Parts Recycled . | . . . . . . . . . . . . . Recycled Matter . | . . . . . . . . . . . . . Retrieved Matter . | . . . . . . . . . . . . . Retrieved Components . | . . . . . . . . . . . . . Parts Scanalyzed 2 | . . . . . 2 . . . . . . . Part Schematics Acquired 2 | . . . . . 2 . . . . . . . Parts Damaged . | . . . . . . . . . . . . . Bothacking | -11 -10 -10 -10 -9 -8 -7 -7 -7 -6 -6 -6 -6 ------------ Run | Yrd Mat Min Exi Min Mat Fac Low Low Fac Gar Fac Gar Used RIF Installer 1 | . . . . . . . . . . 1 . . Robots Hacked 7 | . . . . . . . . . . 1 6 . Non-combat . | . . . . . . . . . . . . . Combat 7 | . . . . . . . . . . 1 6 . Robot Hacks Applied 9 | . . . . . . . . . . 1 8 . parse_system 2 | . . . . . . . . . . . 2 . find_shortcuts 1 | . . . . . . . . . . . 1 . find_garrison 1 | . . . . . . . . . . . 1 . disable_weapons 1 | . . . . . . . . . . . 1 . go_dormant 1 | . . . . . . . . . . . 1 . overwrite_iff 2 | . . . . . . . . . . . 2 . formatsys_high 1 | . . . . . . . . . . 1 . . Relay Couplers Released 9 | . . . . . . . . . . 9 . . Machine Destruction 9 | . . . . . . . . . . 9 . . Attached 2 | . . . . . . . . . . 1 1 . Fabnet Peak Effective % . | . . . . . . . . . . . . . Robots Rewired 1 | . . . . . . . 1 . . . . . Allies Hacked . | . . . . . . . . . . . . . Hacks Repelled . | . . . . . . . . . . . . . Allies | -11 -10 -10 -10 -9 -8 -7 -7 -7 -6 -6 -6 -6 -------- Run | Yrd Mat Min Exi Min Mat Fac Low Low Fac Gar Fac Gar Total Allies 4 | . . . . . . . 1 . . 1 2 . Largest Group 1 | . . . . . . . 1 1 1 1 1 . Highest-Rated Group 85 | . . . . . . . 32 32 32 85 12 . Highest-Rated Ally 85 | . . . . . . . 32 32 32 85 12 . Total Orders . | . . . . . . . . . . . . . Ally Attacks 14 | . . . . . . . 2 2 1 5 4 . Total Damage 377 | . . . . . . . 42 49 18 214 54 . Kills 3 | . . . . . . . . . 1 . 2 . Allies Corrupted . | . . . . . . . . . . . . . Allies Melted . | . . . . . . . . . . . . . Intel | -11 -10 -10 -10 -9 -8 -7 -7 -7 -6 -6 -6 -6 ------- Run | Yrd Mat Min Exi Min Mat Fac Low Low Fac Gar Fac Gar Active Infowar (turns) 854 | . 393 41 123 . 115 182 . . . . . . Terrain 739 | . 393 41 123 . . 182 . . . . . . Traps 115 | . . . . . 115 . . . . . . . Robot Analysis Total 1 | . . . . . 1 . . . . . . . Derelict Logs Recovered 4 | . . . . 2 . . 2 . . . . . Drone Launches . | . . . . . . . . . . . . . Drone Recoveries . | . . . . . . . . . . . . . Exploration | -11 -10 -10 -10 -9 -8 -7 -7 -7 -6 -6 -6 -6 ------------- Run | Yrd Mat Min Exi Min Mat Fac Low Low Fac Gar Fac Gar Turns Passed 7177 | 66 401 41 463 360 1142 1294 570 108 159 1299 1183 91 Spaces Moved 4627 | 54 338 42 405 292 648 872 384 79 116 835 519 43 Core 51 | 6 . . . . . . . . . 44 1 . Treads 693 | . . . . . . . . . . 133 517 43 Legs 2249 | . . . . . 365 872 384 79 116 433 . . Wheels 1409 | 48 338 42 405 292 283 . . . . . 1 . Hover . | . . . . . . . . . . . . . Flight 225 | . . . . . . . . . . 225 . . Fastest Speed 40 | 50 100 100 100 115 93 125 125 125 125 40 130 160 Average Speed 129 | 94 100 100 110 115 120 127 125 125 125 124 200 160 Slowest Speed 1150 | 100 100 100 115 115 270 130 125 125 125 320 1150 160 Overloaded Moves . | . . . . . . . . . . . . . Propulsion Burnouts . | . . . . . . . . . . . . . Robots Hopped . | . . . . . . . . . . . . . Potential Cave-ins . | . . . . . . . . . . . . . Cave-ins Triggered . | . . . . . . . . . . . . . Exploration Rate (%) 34 | 4 61 8 88 57 47 24 66 10 4 54 14 9 Regions Visited 12 Branch Regions 5 Pre-discovered Areas 1 | . . . . . . . 1 . . . . . Known Exits Taken 3 | . . . . . 1 . . . 1 . 1 . Unknown Exits Taken 8 | 1 1 1 1 1 . 1 1 1 . . . . Scrap Searched 4 | . . 1 . 1 . . 2 . . . . . Spaces Dug 4 | . . . . . . . . . . 4 . . Terrain Destroyed 136 | . 2 . . . 51 5 20 . . 58 . . Melee 4 | . . . . . . . . . . 4 . . Projectile 1 | . . . . . . 1 . . . . . . AOE 131 | . 2 . . . 51 4 20 . . 54 . . Terrain Rammed . | . . . . . . . . . . . . . Walls Destroyed . | . . . . . . . . . . . . . Machines Disabled . | . . . . . . . . . . . . . Actions | -11 -10 -10 -10 -9 -8 -7 -7 -7 -6 -6 -6 -6 --------- Run | Yrd Mat Min Exi Min Mat Fac Low Low Fac Gar Fac Gar Total 5520 | 68 376 41 421 310 937 1020 438 84 128 1025 621 51 Wait 453 | . 11 . . 13 197 79 18 2 . 88 45 . Move 4617 | 53 337 41 404 291 647 871 383 78 116 834 519 43 Hop . | . . . . . . . . . . . . . Pick Up 93 | 8 9 . 6 3 12 13 4 . 4 21 13 . Fast Attach 25 | . . . 4 . 9 3 . . 2 5 2 . Attach 37 | 6 1 . . . 2 1 3 . 2 12 10 . Detach 2 | . . . . . 2 . . . . . . . Swap 54 | 1 2 . 2 . 18 16 4 . 1 7 2 1 Drop 56 | . 3 . 5 . 13 18 1 . 2 8 6 . Fire 131 | . 13 . . 3 26 11 20 4 1 22 24 7 Melee 47 | . . . . . 11 8 5 . . 23 . . Ram . | . . . . . . . . . . . . . Kick . | . . . . . . . . . . . . . Crush . | . . . . . . . . . . . . . Escape Stasis 5 | . . . . . . . . . . 5 . . Rewire . | . . . . . . . . . . . . . Trap . | . . . . . . . . . . . . . Miscellaneous . | . . . . . . . . . . . . . Route ------- -11/Scrapyard -10/Materials (discovered 2 exits: [*Min x2]) -10/Mines -10/Exiles -9/Mines -8/Materials -7/Factory (discovered 2 exits: *Fac / [*Low]) -7/Lower Caves -7/Lower Caves -6/Factory -6/Garrison (discovered 3 exits: *Fac x3) -6/Factory -6/Garrison History --------- Turn | Location | Event 22 | -11/Scrapyard | Discovered new exit (range 16) 67 | -11/Scrapyard | Entered Materials 305 | -10/Materials | Build established: Mutant 393 | -10/Materials | Discovered new exit (range 13) 395 | -10/Materials | Discovered new exit (range 7) 468 | -10/Materials | Entered Mines 498 | -10/Mines | Met a Derelict bent on vengeance 499 | -10/Mines | Assembled infested the area 505 | -10/Mines | Deemed a non-threat by the Exiles lab entrance 505 | -10/Mines | Discovered new exit (range 5) 509 | -10/Mines | Entered Exiles 534 | -10/Exiles | Met 8R-AWN 552 | -10/Exiles | Met EX-HEX 583 | -10/Exiles | Met EX-BIN 595 | -10/Exiles | Aligned with FarCom system 596 | -10/Exiles | Given EX-Vault access code 621 | -10/Exiles | Opened EX-Vault 625 | -10/Exiles | Found Prototype Storage 626 | -10/Exiles | Identified Superbattery 631 | -10/Exiles | Found Prototype Processor 632 | -10/Exiles | Identified 0b10 Alert Chip 636 | -10/Exiles | Found Prototype Ballistic Gun 636 | -10/Exiles | Identified AWS/Gauss 690 | -10/Exiles | Warned to stay clear of 0b10 Research branches 722 | -10/Exiles | Met EX-DEC 769 | -10/Exiles | Visited The Gauntlet 958 | -10/Exiles | Discovered new exit (range 12) 972 | -10/Exiles | Left Exiles lab with Superbattery 972 | -10/Exiles | Entered Mines 1161 | -9/Mines | Learned location of 1 exit from Materials 1213 | -9/Mines | YI-UF0 nonchalantly dropped a Grenade Launcher on the ground 1235 | -9/Mines | Learned Materials emergency access door positions 1252 | -9/Mines | Discovered new exit (range 10) 1332 | -9/Mines | Entered Materials 1332 | -8/Materials | Evolved 4 slots: Propulsion x2, Utility x2 1333 | -8/Materials | Identified exit to Factory 2099 | -8/Materials | Destroyed 12 combat bots 2360 | -8/Materials | Repaired Titanium Leg 2474 | -8/Materials | Entered Factory 2474 | -7/Factory | Evolved 2 slots: Utility x1, Weapon x1 3043 | -7/Factory | Allied Derelicts emerged from ambush trap array 3246 | -7/Factory | Discovered new exit (range 15) 3263 | -7/Factory | Build established: Tank 3469 | -7/Factory | Lost 3 allies 3759 | -7/Factory | Discovered new exit (range 8) 3768 | -7/Factory | Entered Lower Caves 3885 | -7/Lower Caves | Attracted the attention of an 0b10 checkpoint 4312 | -7/Lower Caves | Discovered new exit (range 5) 4338 | -7/Lower Caves | Entered another Lower Caves area 4338 | -7/Lower Caves | Accompanied by 1 ally 4356 | -7/Lower Caves | Discovered new exit (range 14) 4446 | -7/Lower Caves | Entered Factory 4446 | -6/Factory | Accompanied by 1 ally 4446 | -6/Factory | Evolved 2 slots: Power x1, Utility x1 4605 | -6/Factory | Identified exit to Garrison 4605 | -6/Factory | Entered Garrison 4605 | -6/Garrison | Accompanied by 1 ally 4781 | -6/Garrison | Triggered checkpoint 4807 | -6/Garrison | Garrison Relay disabled 4860 | -6/Garrison | Build established: Hacker-Skirmisher 5088 | -6/Garrison | Spotted B-75 Beast 5091 | -6/Garrison | Triggered checkpoint 5095 | -6/Garrison | Triggered checkpoint 5161 | -6/Garrison | Build established: Hacker-Mutant 5176 | -6/Garrison | Discovered new exit (range 10) 5186 | -6/Garrison | Discovered new exit (range 8) 5186 | -6/Garrison | Discovered new exit (range 81) 5186 | -6/Garrison | Discovered new exit (range 92) 5223 | -6/Garrison | Triggered checkpoint 5323 | -6/Garrison | Lost 15 parts (1p6n4u4w) 5339 | -6/Garrison | Core integrity fell below 50% 5344 | -6/Garrison | Phase Generator disabled 5413 | -6/Garrison | Installed Relay Interface Framework 5454 | -6/Garrison | Assimilated Beast 5a with formatsys_high 5516 | -6/Garrison | Core integrity fell below 20% 5565 | -6/Garrison | Build established: Mutant 5626 | -6/Garrison | Garrison Relay disabled 5904 | -6/Garrison | Entered Factory 5990 | -6/Factory | Build established: Bothacker-Skirmisher 6690 | -6/Factory | Build established: Bothacker-Tank 6936 | -6/Factory | Repaired HERF Cannon 7087 | -6/Factory | Identified exit to Garrison 7087 | -6/Factory | Entered Garrison 7179 | -6/Garrison | Core destroyed Last Messages --------------- LOCATION=GARRISON GOAL=ESCAPE Receiving FarCom transmissions... Connecting with Garrison Terminal... >>Access(Emergency) Found 64 emergency access points. Map updated. Garrison Terminal disabled. P-60 Hacker resets P-60 Hacker, system corruption cleaned. P-60 Hacker destroyed. Lyr. Medium Armor Plating destroyed. Destroyed Gravmag System. Power failure averted by Adv. Cryofiber Web. System interference averted by Adv. Cryofiber Web. Overheating: System interference. Adv. Cryofiber Web temporarily disabled. Overheating: Core damaged (-119). Map ----- +----------------------------------------------------+ | ?????????????????????????????????????????????????? | | ?????????????????????????????????????????????????? | | ?????????????????????????????????????????????????? | | ?????????????????????????????????????????????????? | | ?????????????????????????????????????????????????? | | ?????????????????????????????????????????????????? | | ?????????????????????????????????????????????###?? | | ????????????????????????????????????????????+ ?? | | ????????????????????????????????????????????+ ^ ?? | | ???????????????????????? ??????????????????? #?? | | ???????????????????????? ??????????????????? #?? | | ???????????????????????? ??????????????????# #?? | | ???????????????????????# ??????????????????# #?? | | ???????????????????????# ??????????????????# #?? | | ???????????????????????# ??????????????????# #?? | | ???????????????????????# ??????????????????# #?? | | ???????????????????????# #???????????????### #?? | | ???????????????????????# #???????????????# #?? | | ???????????????????????# #???????????????+ #?? | | ???????????????????????# #???????????????# #?? | | ???????????????????????# #???????????????### #?? | | ???????????????????????# #?????????????????# #?? | | ???????????????????????# #?????????????????# #?? | | ???????????????????????# #?????????????????# #?? | | ???????????????????????# #?????????????????# #?? | | ???????????????????????# @#?????????????????# #?? | | ???????????????????????# #?????????????????# #?? | | ???????????????????????#|*#?????????????????# #?? | | ???????????????????????#p;##############+#### #?? | | ??+??+?????????????????#[=! #?? | | ???????????????????????# #?? | | ???????????????????????# ###################++#?? | | ???????????????????????# #??????????????????????? | | ???????????????????????#p #??????????????????????? | | ???????????????????????# #?????????????????????? | | ???????????????????????# ##?????????????????????? | | ???????????????????????# #??????????????????????? | | ?????????????????+?C???# #??????????????????????? | | ???????????????????????# #??????????????????????? | | ??????????+???????????? ??????????????????????? | | ??????????????????????? ??????????????????????? | | ??????????????????????? ??????????????????????? | | ??????????????????????## ??????????????????????? | | ???????????????????????# #?????????????????????? | | ??????????????????????? "?????????????????????? | | ??????????????????????? "?????????????????????? | | ??????????????????????? "?????????????????????? | | ??????????????????????? ??????????????????????? | | ???????????????????????# ??????????????????????? | | ?????????????????????????????????????????????????? | +----------------------------------------------------+ Best States ------------- Heat Dissipation 56 Energy Generation 27 Energy Capacity 1790 Matter Stores 300 Matter Capacity 300 Sight Range 16 Terrain Scan Range 16 Terrain Scan Density 10 Base Temperature (-) 200 EM Shielding 2 Armor Coverage 375 Resistance: KI 20 Resistance: TH 30 Resistance: EX 20 Resistance: EM 20 Resistance: I 20 Resistance: S 20 Resistance: P 20 Core Shielding 30 Evasion (%) 62 Target Analysis 5 Recoil Reduction 3 Offensive Hacking 21 Relay Coupler Types 1 Relay Coupler Value 29 Item Schematics ----------------- Com. Wheel | -8/Materials | Scanalyzed Grenade Launcher | -8/Materials | Scanalyzed Robot Schematics ------------------ None Fabricated ------------ Nothing Repaired ---------- Titanium Leg | 53% | -8/Materials HERF Cannon | 32% | -6/Factory Alien Tech Used ----------------- None Achievements -------------- None Challenges ------------ None Game ------ Seed ThunderTiamatPlatform Manual? 0 Play Time 01:21:35 Cumulative 34.1 hours Start 2025.08.02 @ 22:42:39 End 2025.08.03 @ 00:06:02 Sessions 1 Manual Loads 0 Difficulty Adventurer Special Mode None Game No. 27 Rogue 0 Adventurer 27 Explorer 0 Win Type - Total 0 Types 0/0/0/0/0/0/0/0/0/0 Lore% 8 Gallery% 27 Achievement% 24 Wizard Run 0 Options --------- Layout 1 ASCII 0 Keyboard 0 Movement Mouse Keybinds 0 Fullscreen 1 Font 24/Smallcaps Map View 50x35 Zoom Use 15% Tactical HUD 0 Map Filters NONE Filters NONE Steam 1 RUN: e9b3190a-9f12-41f0-9663-63a69b2d2411